bitfinex-derivatives/quotes_ETHF0:USTF0_20250501
["timestamp","ask_amount","ask_price","bid_price","bid_amount"]
[1746078928080,1.1034,1812.3,1812.2,40.8]
[1746078929183,1.936,1812.3,1812.2,44.588]
[1746078931689,1.936,1812.3,1812.2,45.69146]
[1746078931873,1.936,1812.3,1812.2,47.30096]
[1746078932286,1.936,1812.3,1812.2,46.1975]
[1746078933983,1.936,1812.3,1812.2,44.588]
[1746078934682,1.936,1812.3,1812.2,3.788]
[1746078934884,6.936,1812.3,1812.2,3.788]
[1746078935084,8.6587,1812.3,1812.2,3.788]
[1746078935284,1.10358,1812.0,1811.9,44.0078]
[1746078936182,2.74408,1812.0,1811.9,47.7958]
[1746078936690,2.74408,1812.0,1811.9,44.588]
[1746078938984,2.74408,1812.0,1811.9,3.788]
[1746078939189,1.10376,1811.7,1811.6,1.7286]
[1746078940289,1.92046,1811.7,1811.6,1.7286]
[1746078950507,1.92046,1811.7,1811.6,2.83243]
[1746078950703,1.10376,1811.7,1811.6,1.7286]
[1746078951304,1.89866,1811.7,1811.6,1.7286]
[1746078954809,1.89866,1811.7,1811.6,2.83243]
[1746078955409,1.89866,1811.7,1811.6,1.7286]
[1746078955910,1.89866,1811.7,1811.6,2.83243]
[1746078956418,1.89866,1811.7,1811.6,1.7286]
[1746078957609,1.10376,1811.7,1811.6,1.7286]
[1746078957815,1.10376,1811.7,1811.6,2.83243]
[1746078958613,2.78936,1811.7,1811.6,2.83243]
[1746078959218,2.78936,1811.7,1811.6,1.7286]
[1746078961015,1.10383,1811.6,1811.5,5.75954]
[1746078961208,2.80833,1811.6,1811.5,7.46684]
[1746078965017,6.01613,1811.6,1811.5,3.788]
[1746078965317,1.10407,1811.2,1811.1,11.36118]
[1746078965810,1.10405,1811.3,1811.2,1.10404]
[1746078966015,2.78699,1811.4,1811.3,2.84331]
[1746078966614,1.10391,1811.5,1811.4,1.10395]
[1746078966805,1.10387,1811.6,1811.5,1.10386]
[1746078967007,1.10387,1811.6,1811.5,2.4482]
[1746078967210,3.67061,1811.7,1811.5,6.2362]
[1746078967515,2.84476,1811.7,1811.6,1.10383]
[1746078967718,2.84476,1811.7,1811.6,2.73333]
[1746078969510,1.741,1811.7,1811.6,2.73333]
[1746078969718,4.31143,1812.0,1811.6,1.6295]
[1746078969913,4.31143,1812.0,1811.8,1.10366]
[1746078970117,4.31143,1812.0,1811.8,4.89166]
[1746078970418,5.88603,1812.0,1811.8,6.51656]
[1746078970618,2.67823,1812.0,1811.9,1.10364]
[1746078971012,2.67823,1812.0,1811.9,1.6249]
[1746078971218,2.67823,1812.0,1811.9,5.4129]
[1746078971720,2.67823,1812.0,1811.9,6.51654]
[1746078972019,0.8328,1812.1,1812.0,1.10358]
[1746078972207,5.88588,1812.2,1812.0,4.40223]
[1746078972407,1.10352,1812.1,1812.0,4.40223]
[1746078972617,5.8859,1812.2,1812.0,4.40223]
[1746078973220,5.8859,1812.2,1812.0,8.19023]
[1746078975718,5.8859,1812.2,1812.1,1.10352]
[1746078978526,5.8859,1812.2,1812.0,8.19023]
[1746078978721,4.7824,1812.2,1812.1,1.10352]
[1746078978920,4.7824,1812.2,1812.1,2.81412]
[1746078979224,5.88586,1812.2,1812.1,2.81412]
[1746078979623,1.5746,1812.2,1812.1,2.81412]
[1746078982427,1.5746,1812.2,1812.1,6.02192]
[1746078982622,1.6428,1812.4,1812.3,1.1034]
[1746078982822,2.74614,1812.4,1812.3,1.1034]
[1746078983224,2.74614,1812.4,1812.3,4.8914]
[1746078983618,1.6428,1812.4,1812.3,4.8914]
[1746078984330,4.49374,1812.4,1812.3,4.8914]
[1746078984738,3.3904,1812.4,1812.3,4.8914]
[1746078985233,1.7476,1812.4,1812.3,8.0992]
[1746078985436,2.75612,1812.6,1812.5,1.10328]
[1746078985735,3.2473,1812.6,1812.5,1.10328]
[1746078986231,3.2473,1812.6,1812.5,4.89128]
[1746078986432,4.35052,1812.6,1812.5,3.788]
[1746078989236,4.35052,1812.6,1812.5,4.89128]
[1746078992035,4.35052,1812.6,1812.5,3.788]
[1746078992535,4.35052,1812.6,1812.5,4.89128]
[1746078993738,4.35052,1812.6,1812.5,3.788]
[1746078994434,4.35052,1812.6,1812.5,4.89128]
[1746078994735,4.35052,1812.6,1812.5,3.788]
[1746078997041,4.35052,1812.6,1812.5,4.89128]
[1746078998435,4.35052,1812.6,1812.5,3.788]
[1746079010147,1.1034,1812.3,1812.2,44.0078]
[1746079011042,1.1034,1812.3,1812.0,4.31133]
[1746079011043,1.10351,1812.2,1812.0,4.31133]
[1746079011245,1.10351,1812.2,1812.0,3.2078]
[1746079011446,2.74121,1812.2,1812.1,1.6943]
[1746079011649,1.6377,1812.2,1812.0,3.2078]
[1746079011849,1.10352,1812.1,1812.0,4.31136]
[1746079012040,1.10352,1812.1,1812.0,45.11136]
[1746079012245,2.74122,1812.1,1812.0,50.59366]
[1746079012645,2.74122,1812.1,1812.0,47.7958]
[1746079012848,2.74122,1812.1,1812.0,3.788]
[1746079013243,2.74122,1812.1,1812.0,44.588]
[1746079014055,14.58002,1812.1,1812.0,3.788]
[1746079014349,1.1037,1811.8,1811.7,48.11890961]
[1746079014648,1.1037,1811.8,1811.7,40.8]
[1746079015151,1.1037,1811.8,1811.7,44.588]
[1746079015350,2.727,1811.8,1811.7,44.588]
[1746079015749,2.727,1811.8,1811.7,46.2274]
[1746079016249,1.1037,1811.8,1811.7,47.33116]
[1746079016447,1.1037,1811.8,1811.7,46.2274]
[1746079017551,1.1037,1811.8,1811.7,47.0475]
[1746079017859,1.1037,1811.8,1811.7,48.15126]
[1746079018149,1.1037,1811.8,1811.7,47.0475]
[1746079019354,2.7771,1811.8,1811.7,47.0475]
[1746079024958,2.7771,1811.8,1811.7,46.2274]
[1746079025350,1.1037,1811.8,1811.7,46.2274]
[1746079025656,1.1037,1811.9,1811.7,47.33112]
[1746079025856,1.1037,1811.9,1811.8,3.3613]
[1746079027053,1.1037,1811.9,1811.8,7.1493]
[1746079029156,1.1037,1811.9,1811.8,8.253]
[1746079029463,1.1036,1812.0,1811.9,1.10364]
[1746079029661,1.1036,1812.0,1811.9,2.68134]
[1746079030164,1.10356,1812.1,1812.0,1.10358]
[1746079030363,1.10356,1812.1,1812.0,2.3867]
[1746079031063,1.10356,1812.1,1812.0,6.1747]
[1746079031363,2.7919,1812.2,1812.0,7.27828]
[1746079031556,2.7919,1812.2,1812.1,1.7245]
[1746079032060,1.1035,1812.2,1812.1,1.7245]
[1746079032261,1.1035,1812.2,1812.1,2.5519]
[1746079032662,2.7919,1812.2,1812.1,2.5519]
[1746079041172,2.7919,1812.2,1812.1,3.65542]
[1746079041470,2.7919,1812.2,1812.1,2.5519]
[1746079043471,2.7919,1812.2,1812.1,1.7245]
[1746079045882,1.10352,1812.1,1812.0,5.70053]
[1746079046074,2.79692,1812.1,1812.0,3.788]
[1746079049183,2.79692,1812.1,1812.0,4.89158]
[1746079049578,2.79692,1812.1,1812.0,6.49958]
[1746079050683,1.1035,1812.2,1812.1,1.10349]
[1746079050885,1.1035,1812.2,1812.1,2.71149]
[1746079051480,2.7521,1812.2,1812.1,2.71149]
[1746079053581,2.7521,1812.2,1812.1,1.608]
[1746079053786,1.10352,1812.1,1812.0,4.89154]
[1746079053987,2.74412,1812.1,1812.0,4.89154]
[1746079054290,2.74412,1812.1,1812.0,6.63734]
[1746079054479,1.6406,1812.1,1812.0,7.46584]
[1746079054889,2.74412,1812.1,1812.0,7.46584]
[1746079056185,1.6406,1812.1,1812.0,7.46584]
[1746079056389,2.74412,1812.1,1812.0,7.46584]
[1746079057084,0.09606453,1813.8,1812.1,2.75881]
[1746079057085,3.2078,1813.4,1812.1,2.75881]
[1746079057386,1.5923,1813.1,1813.0,1.10297]
[1746079057686,2.69521,1813.1,1813.0,42.3852]
[1746079057875,2.69521,1813.1,1813.0,40.8]
[1746079059194,2.69521,1813.1,1813.0,44.588]
[1746079061594,1.5923,1813.1,1813.0,44.588]
[1746079061889,1.5923,1813.1,1813.0,45.69097]
[1746079062189,2.69521,1813.1,1813.0,44.588]
[1746079062685,1.5923,1813.1,1813.0,45.69097]
[1746079065386,1.5923,1813.1,1813.0,47.26747]
[1746079071393,2.69521,1813.1,1813.0,47.26747]
[1746079072599,1.5923,1813.1,1813.0,47.26747]
[1746079072795,2.69521,1813.1,1813.0,47.26747]
[1746079073190,1.5923,1813.1,1813.0,47.26747]
[1746079074795,2.69521,1813.1,1813.0,47.26747]
[1746079076802,1.5923,1813.1,1813.0,47.26747]
[1746079078703,2.69521,1813.1,1813.0,47.26747]
[1746079080305,1.5923,1813.1,1813.0,47.26747]
[1746079081905,2.69521,1813.1,1813.0,47.26747]
[1746079082198,2.69521,1813.1,1813.0,3.788]
[1746079082404,2.69521,1813.1,1813.0,4.89097]
[1746079082704,2.69521,1813.1,1813.0,45.69097]
[1746079085307,1.5923,1813.1,1813.0,45.69097]
[1746079088609,1.5923,1813.1,1813.0,47.26877]
[1746079089410,1.10271,1813.5,1813.3,1.10276]
[1746079089611,1.7472,1813.4,1813.3,1.10276]
[1746079090014,1.7472,1813.4,1813.3,2.74546]
[1746079090210,2.84993,1813.4,1813.3,5.4307]
[1746079090510,16.59507614,1814.3,1813.3,11.54493]
[1746079090807,0.8523,1813.8,1813.7,1.10255]
[1746079091010,0.8644,1814.1,1813.8,1.10245]
[1746079091211,2.8496,1814.0,1813.9,3.2078]
[1746079091608,1.10243,1813.9,1813.8,1.6427]
[1746079091809,1.10249,1813.8,1813.7,47.7958]
[1746079092010,1.10249,1813.8,1813.7,44.588]
[1746079092213,1.96689,1813.8,1813.7,44.588]
[1746079092707,1.10232,1814.1,1813.7,44.588]
[1746079092903,1.1023,1814.1,1813.8,1.10245]
[1746079093110,2.69767,1814.0,1813.8,2.74475]
[1746079093910,1.5953,1813.9,1813.8,2.74475]
[1746079094107,1.5953,1813.9,1813.8,6.53275]
[1746079094714,2.69773,1813.9,1813.8,6.53275]
[1746079095014,1.5953,1813.9,1813.8,6.53275]
[1746079099414,1.10238,1814.0,1813.9,1.10243]
[1746079099616,1.10238,1814.0,1813.9,6.04863]
[1746079100113,1.10238,1814.0,1813.9,9.83663]
[1746079100711,2.81384,1814.1,1813.9,8.7342]
[1746079100918,1.6786,1814.2,1814.1,1.1023]
[1746079101212,1.92754,1814.2,1814.1,1.1023]
[1746079101413,2.73984,1814.2,1814.1,1.1023]
[1746079102017,3.62859213,1814.7,1814.1,3.2078]
[1746079102316,1.10218,1814.3,1814.1,5.90856]
[1746079102524,1.10218,1814.3,1814.2,1.10224]
[1746079103118,1.10218,1814.3,1814.2,4.89024]
[1746079103314,3.64078,1814.3,1814.2,4.89024]
[1746079104910,3.64078,1814.3,1814.2,3.788]
[1746079105411,0.8386,1814.4,1814.3,1.10218]
[1746079105615,3.2078,1814.7,1814.3,6.0528]
[1746079105817,1.10208,1814.5,1814.3,7.15495]
[1746079106011,1.10212,1814.4,1814.3,5.2444]
[1746079106211,2.68902,1814.4,1814.3,9.0324]
[1746079108222,2.68902,1814.4,1814.3,12.2402]
[1746079110022,2.68902,1814.4,1814.3,10.6048]
[1746079110225,2.68902,1814.4,1814.3,6.8168]
[1746079111127,3.2078,1814.6,1814.3,7.91894]
[1746079111327,1.10206,1814.5,1814.4,2.4628]
[1746079111619,1.10198,1814.7,1814.5,1.10206]
[1746079111823,1.7257,1814.7,1814.6,3.2078]
[1746079112824,2.82764,1814.7,1814.6,4.3098]
[1746079113024,2.82764,1814.7,1814.6,5.8877]
[1746079113321,2.82764,1814.7,1814.6,4.7857]
[1746079113925,1.10186,1814.9,1814.7,1.10191]
[1746079114123,2.72356,1814.9,1814.7,7.33891]
[1746079114826,1.6217,1814.8,1814.7,7.33891]
[1746079117222,2.72358,1814.8,1814.7,6.237]
[1746079117422,2.72358,1814.8,1814.7,5.3659]
[1746079117624,2.72358,1814.8,1814.7,3.788]
[1746079118128,1.10212,1814.4,1814.3,6.39045]
[1746079118526,1.10211,1814.5,1814.3,6.39045]
[1746079118729,3.2626,1814.4,1814.3,6.39045]
[1746079119130,3.2626,1814.4,1814.3,10.17845]
[1746079119928,2.4526,1814.4,1814.3,10.17845]
[1746079120130,1.10204,1814.6,1814.4,1.10209]
[1746079120323,1.10204,1814.6,1814.4,4.8276]
[1746079120722,2.67774,1814.6,1814.5,1.6198]
[1746079121124,2.67774,1814.6,1814.5,5.4078]
[1746079121833,1.6247,1814.7,1814.5,5.4078]
[1746079122025,1.10194,1814.7,1814.6,5.9296]
[1746079122425,2.6776,1814.8,1814.7,1.10194]
[1746079122626,2.6776,1814.8,1814.7,1.6905]
[1746079123133,2.6776,1814.8,1814.7,5.4785]
[1746079124023,1.6701,1814.9,1814.7,5.4785]
[1746079124227,4.39436,1814.9,1814.7,6.5804]
[1746079124531,1.6224,1814.9,1814.8,1.10188]
[1746079124727,1.6224,1814.9,1814.8,3.60718]
[1746079125133,1.6224,1814.9,1814.8,7.39518]
[1746079125534,1.6224,1814.9,1814.8,10.60298]
[1746079125927,1.6224,1814.9,1814.8,51.40298]
[1746079126233,2.72422,1814.9,1814.8,50.3011]
[1746079126434,2.72422,1814.9,1814.8,51.40298]
[1746079127033,2.72422,1814.9,1814.8,47.7958]
[1746079127228,1.10182,1814.9,1814.8,44.588]
[1746079127835,2.76362,1814.9,1814.8,44.588]
[1746079128236,2.76362,1814.9,1814.8,40.8]
[1746079129927,1.10194,1814.7,1814.6,3.2078]
[1746079130230,1.10206,1814.5,1814.4,3.2078]
[1746079130535,1.10218,1814.3,1814.2,3.2078]
[1746079130835,1.6379,1814.4,1814.3,1.10218]
[1746079131236,1.6379,1814.4,1814.3,1.6823]
[1746079131237,2.74002,1814.4,1814.3,1.6823]
[1746079131944,1.6379,1814.4,1814.3,2.78448]
[1746079132437,2.75711,1814.6,1814.4,1.10209]
[1746079132638,4.49831,1814.6,1814.4,5.91519]
[1746079133144,3.3963,1814.6,1814.5,2.70736]
[1746079133333,4.4983,1814.6,1814.5,1.6053]
[1746079133635,2.6027,1814.6,1814.5,2.70736]
[1746079133830,1.10193,1814.8,1814.6,1.102]
[1746079134037,1.10193,1814.8,1814.7,1.6053]
[1746079134538,1.10194,1814.7,1814.6,3.9945]
[1746079135038,1.10194,1814.7,1814.6,0.7867]
[1746079135639,2.8476,1814.8,1814.6,3.51047]
[1746079135833,2.8476,1814.8,1814.6,6.71827]
[1746079136033,1.7457,1814.7,1814.6,6.71827]
[1746079137140,1.1019,1814.8,1814.6,6.71827]
[1746079137345,1.1019,1814.8,1814.6,4.30977]
[1746079137640,1.7356,1814.7,1814.6,5.92487]
[1746079137946,2.83754,1814.7,1814.6,5.92487]
[1746079138531,2.83754,1814.7,1814.6,4.8229]
[1746079140138,2.83754,1814.7,1814.5,10.90262]
[1746079140339,1.7356,1814.6,1814.5,10.90262]
[1746079140542,2.8376,1814.6,1814.5,7.393]
[1746079140743,3.7087,1814.6,1814.5,7.393]
[1746079141131,3.7087,1814.6,1814.5,3.605]
[1746079142945,1.10191,1814.8,1814.6,1.10196]
[1746079143245,1.10191,1814.8,1814.6,7.70756]
[1746079143632,1.10194,1814.7,1814.6,7.70756]
[1746079144042,1.10194,1814.7,1814.6,6.6056]
[1746079144742,1.10194,1814.7,1814.6,7.7076]
[1746079144945,1.10194,1814.7,1814.6,6.6056]
[1746079145344,1.6364,1814.8,1814.7,1.10194]
[1746079145543,1.6364,1814.8,1814.7,2.77224]
[1746079146243,2.73828,1814.8,1814.7,5.4583]
[1746079147548,2.73828,1814.8,1814.7,3.788]
[1746079148236,1.10194,1814.7,1814.6,5.13886]
[1746079148440,2.80244,1814.7,1814.6,6.79486]
[1746079149147,2.80244,1814.7,1814.6,3.58706]
[1746079149343,2.80244,1814.7,1814.6,6.79486]
[1746079149543,1.10192,1814.8,1814.6,6.79486]
[1746079149735,1.10192,1814.8,1814.7,2.73304]
[1746079149939,1.10192,1814.8,1814.7,1.6311]
[1746079150140,1.10192,1814.8,1814.7,5.4191]
[1746079150446,1.10192,1814.8,1814.7,3.788]
[1746079151147,1.10194,1814.7,1814.6,6.01019]
[1746079151349,1.91064,1814.7,1814.6,6.01019]
[1746079152145,0.8087,1814.7,1814.6,6.01019]
[1746079152349,1.91064,1814.7,1814.6,7.64129]
[1746079152544,3.56524,1814.7,1814.6,7.64129]
[1746079153148,2.4633,1814.7,1814.6,7.64129]
[1746079154856,3.56524,1814.7,1814.6,7.64129]
[1746079156251,2.75654,1814.7,1814.6,7.64129]
[1746079156449,2.75654,1814.7,1814.6,6.76999]
[1746079157052,1.102,1814.6,1814.5,3.788]
[1746079157245,2.6969,1814.6,1814.4,6.5076]
[1746079157449,2.6969,1814.6,1814.5,1.5972]
[1746079159159,2.6969,1814.6,1814.5,2.69926]
[1746079159662,1.5949,1814.6,1814.5,2.69926]
[1746079160658,2.6969,1814.6,1814.5,2.69926]
[1746079161058,0.8041,1814.9,1814.5,1.5972]
[1746079161358,1.10191,1814.8,1814.7,1.10193]
[1746079162356,2.77441,1814.8,1814.7,2.79593]
[1746079162956,8.63013,1815.2,1814.8,1.10188]
[1746079163157,1.10182,1814.9,1814.8,6.6062]
[1746079163755,1.10182,1814.9,1814.8,7.70808]
[1746079163965,1.10182,1814.9,1814.8,6.6062]
[1746079164267,1.10182,1814.9,1814.8,11.49608]
[1746079164456,2.7743,1815.0,1814.8,11.49608]
[1746079165363,2.7743,1815.0,1814.9,1.10182]
[1746079165664,2.7743,1815.0,1814.9,2.80262]
[1746079166065,2.7743,1815.0,1814.9,6.59062]
[1746079166265,2.7743,1815.0,1814.9,5.4888]
[1746079166963,2.7743,1815.0,1814.9,6.59062]
[1746079167165,2.7743,1815.0,1814.9,2.80262]
[1746079167864,1.6725,1815.0,1814.9,2.80262]
[1746079168059,1.6725,1815.0,1814.9,6.59062]
[1746079169063,2.77426,1815.0,1814.9,6.59062]
[1746079170166,1.10166,1815.2,1815.1,1.10168]
[1746079170465,2.70516,1815.2,1815.0,5.90631]
[1746079170858,3.52466,1815.2,1815.0,5.90631]
[1746079171264,1.10166,1815.2,1815.1,1.1017]
[1746079171463,1.10166,1815.2,1815.1,2.7436]
[1746079171665,1.10166,1815.2,1815.1,1.6419]
[1746079171866,2.73116,1815.2,1815.0,8.09752]
[1746079172065,2.73116,1815.2,1815.0,9.73942]
[1746079172270,1.6295,1815.1,1815.0,5.95142]
[1746079172863,2.7312,1815.1,1815.0,5.95142]
[1746079173161,2.7312,1815.1,1815.0,8.09752]
[1746079173363,1.6295,1815.1,1815.0,8.09752]
[1746079173560,1.6295,1815.1,1815.0,4.88972]
[1746079173765,1.6295,1815.1,1815.0,6.53162]
[1746079174972,1.6295,1815.1,1815.0,9.73942]
[1746079177072,2.7312,1815.1,1815.0,9.73942]
[1746079177873,2.7312,1815.1,1815.0,6.9958]
[1746079178071,2.7312,1815.1,1815.0,3.788]
[1746079178371,1.10182,1814.9,1814.8,1.10186]
[1746079178570,1.10188,1814.8,1814.7,8.4582]
[1746079178767,1.10188,1814.8,1814.7,3.603]
[1746079178967,1.102,1814.6,1814.5,18.37525871]
[1746079179674,2.7439,1814.6,1814.5,18.37525871]
[1746079179871,2.7439,1814.6,1814.5,7.31890961]
[1746079180176,2.7439,1814.6,1814.5,11.10690961]
[1746079180577,2.7439,1814.6,1814.5,12.20896961]
[1746079180877,1.6419,1814.6,1814.5,12.20896961]
[1746079181678,1.6419,1814.6,1814.5,13.91396961]
[1746079182979,1.6419,1814.6,1814.5,6.59506]
[1746079183378,2.80426,1814.7,1814.6,1.102]
[1746079183678,2.80426,1814.7,1814.6,2.6908]
[1746079183878,2.80426,1814.7,1814.6,1.5888]
[1746079185079,1.102,1814.6,1814.5,4.89001]
[1746079185281,1.6464,1814.6,1814.5,4.89001]
[1746079185473,2.7484,1814.6,1814.5,6.47881]
[1746079185874,1.6464,1814.6,1814.5,6.47881]
[1746079188178,2.7484,1814.6,1814.5,6.47881]
[1746079188581,1.6464,1814.6,1814.5,6.47881]
[1746079188878,2.7484,1814.6,1814.5,6.47881]
[1746079190182,2.7484,1814.6,1814.5,5.3768]
[1746079190482,2.7484,1814.6,1814.5,3.788]
[1746079191181,2.7484,1814.6,1814.4,7.91287]
[1746079191376,1.6973,1814.5,1814.4,7.91287]
[1746079191576,2.79936,1814.5,1814.4,7.91287]
[1746079192482,2.79936,1814.5,1814.4,6.8108]
[1746079193781,2.79936,1814.5,1814.4,7.91292]
[1746079194577,2.79936,1814.5,1814.4,6.8108]
[1746079194882,1.10218,1814.4,1814.2,4.30999]
[1746079195070,4.36538,1814.4,1814.2,4.30999]
[1746079195274,4.36538,1814.4,1814.2,3.2078]
[1746079195479,2.69868,1814.3,1814.2,4.30999]
[1746079196182,2.69868,1814.3,1814.2,8.09799]
[1746079196384,2.69868,1814.3,1814.2,9.70379]
[1746079198786,2.69868,1814.3,1814.2,8.6016]
[1746079199486,2.69868,1814.3,1814.2,9.70384]
[1746079200184,1.5965,1814.3,1814.2,9.70384]
[1746079201890,2.69868,1814.3,1814.2,9.70384]
[1746079203088,2.69868,1814.3,1814.2,6.9958]
[1746079203284,1.10224,1814.2,1814.1,44.402]
[1746079203488,2.83074,1814.2,1814.1,40.8]
[1746079203884,1.10237,1814.0,1813.9,3.788]
[1746079204287,1.1024,1814.0,1813.8,10.52670961]
[1746079204492,2.83093,1813.9,1813.8,10.52670961]
[1746079204785,1.7285,1813.9,1813.8,52.42919961]
[1746079205390,1.6591,1814.1,1814.0,1.10237]
[1746079205589,1.7044,1814.2,1814.1,1.1023]
[1746079205789,1.7044,1814.2,1814.1,3.6234]
[1746079206089,1.6829,1814.4,1814.3,1.10218]
[1746079206394,1.7044,1814.4,1814.3,1.10218]
[1746079206589,1.7044,1814.4,1814.2,5.7742]
[1746079206590,0.8417,1814.5,1814.4,1.10212]
[1746079206794,3.3873,1814.7,1814.6,1.102]
[1746079207593,3.3873,1814.7,1814.6,2.8158]
[1746079208889,3.2078,1814.8,1814.7,1.10194]
[1746079209084,4.8715,1814.8,1814.7,1.10194]
[1746079209292,4.8715,1814.8,1814.7,4.88994]
[1746079209492,4.8715,1814.8,1814.7,6.49244]
[1746079209683,1.6425,1815.0,1814.8,1.10185]
[1746079209882,3.3062,1815.0,1814.9,1.10182]
[1746079210083,1.10174,1815.1,1814.8,7.57044]
[1746079210287,3.2078,1815.3,1815.0,1.10174]
[1746079210482,1.6637,1815.2,1815.1,1.1017]
[1746079210701,1.6637,1815.2,1815.1,2.7042]
[1746079210892,1.6637,1815.2,1815.1,44.3449]
[1746079211094,0.8535,1815.4,1815.3,1.10158]
[1746079211296,2.5267,1815.4,1815.3,1.10158]
[1746079211493,2.5267,1815.4,1815.3,2.79078]
[1746079212099,3.62822,1815.4,1815.3,1.6892]
[1746079212395,2.5267,1815.4,1815.3,1.6892]
[1746079213899,2.5267,1815.4,1815.3,2.79078]
[1746079214098,1.6732,1815.4,1815.3,6.57878]
[1746079214393,2.77472,1815.4,1815.3,3.788]
[1746079215197,2.77472,1815.4,1815.2,6.8098]
[1746079215386,1.6118,1815.3,1815.2,7.91144]
[1746079215786,1.6118,1815.3,1815.2,9.53134]
[1746079216698,1.10152,1815.4,1815.2,9.53134]
[1746079217092,1.10152,1815.4,1815.3,1.634]
[1746079218694,3.2078,1815.7,1815.6,1.10139]
[1746079218899,1.10133,1815.7,1815.5,7.90922]
[1746079219092,1.6398,1815.6,1815.5,11.69722]
[1746079219291,1.6398,1815.6,1815.5,13.33122]
[1746079219501,1.6398,1815.6,1815.5,12.2298]
[1746079219798,2.74119,1815.6,1815.5,12.2298]
[1746079220100,2.74119,1815.6,1815.5,8.4418]
[1746079220294,2.74119,1815.6,1815.5,3.2078]
[1746079220594,1.10152,1815.4,1815.3,3.2078]
[1746079220800,1.10152,1815.4,1815.3,6.8068]
[1746079223702,1.10164,1815.2,1815.1,40.8]
[1746079224292,2.72794,1815.2,1815.1,40.8]
[1746079225002,2.72794,1815.2,1815.1,42.5318]
[1746079226100,1.10164,1815.2,1815.1,43.6335]
[1746079226402,1.10164,1815.2,1815.1,44.4853]
[1746079226705,0.8546,1815.3,1815.2,1.10164]
[1746079226892,0.8546,1815.3,1815.2,2.76364]
[1746079227098,1.95618,1815.3,1815.2,1.662]
[1746079229098,1.95618,1815.3,1815.2,2.76364]
[1746079229299,1.95618,1815.3,1815.2,1.662]
[1746079230008,2.80245,1815.4,1815.2,1.662]
[1746079230210,2.80245,1815.4,1815.3,1.10158]
[1746079231009,2.80245,1815.4,1815.2,2.76359]
[1746079231207,2.80245,1815.4,1815.3,3.788]
[1746079231407,2.80245,1815.4,1815.3,5.5239]
[1746079233111,2.80245,1815.4,1815.3,3.788]
[1746079234310,1.10164,1815.2,1815.1,48.45218]
[1746079235009,2.69184,1815.2,1815.1,48.45218]
[1746079235306,2.69184,1815.2,1815.1,40.8]
[1746079236102,1.5902,1815.2,1814.9,4.30961]
[1746079236301,1.10176,1815.0,1814.9,3.2078]
[1746079236807,3.62066,1815.0,1814.9,44.0078]
[1746079244114,3.62066,1815.0,1814.9,45.5913]
[1746079245718,3.62066,1815.0,1814.9,44.0078]
[1746079246413,1.10188,1814.8,1814.7,8.4327]
[1746079246612,1.10194,1814.7,1814.6,4.4367]
[1746079247014,1.10194,1814.7,1814.6,45.2367]
[1746079247204,1.102,1814.6,1814.5,3.788]
[1746079247409,3.7162,1814.6,1814.5,3.788]
[1746079247609,3.7162,1814.6,1814.5,44.588]
[1746079248119,3.7162,1814.6,1814.5,42.4461]
[1746079249921,3.7162,1814.6,1814.5,40.8]
[1746079251819,3.7162,1814.6,1814.5,42.5453]
[1746079253723,3.7162,1814.6,1814.5,40.8]
[1746079255117,1.10206,1814.5,1814.4,10.19722]
[1746079255825,1.10206,1814.5,1814.4,9.0951]
[1746079256120,2.79046,1814.5,1814.4,9.0951]
[1746079256718,3.60896,1814.5,1814.4,9.0951]
[1746079257122,3.60896,1814.5,1814.4,5.3071]
[1746079257319,1.10212,1814.4,1814.3,44.8538]
[1746079257524,2.81452,1814.4,1814.3,40.8]
[1746079258223,2.81452,1814.4,1814.3,44.588]
[1746079258413,2.81452,1814.4,1814.3,45.69018]
[1746079258616,2.81452,1814.4,1814.3,49.4472]
[1746079259326,1.7124,1814.4,1814.3,50.54938]
[1746079259528,1.10212,1814.4,1814.3,50.54938]
[1746079259725,1.10206,1814.5,1814.4,1.10212]
[1746079260026,1.10206,1814.5,1814.4,2.67842]
[1746079260215,3.62775,1814.6,1814.4,6.46642]
[1746079260416,3.2078,1814.8,1814.5,2.67836]
[1746079260620,3.2078,1814.8,1814.6,2.6783]
[1746079260621,1.10199,1814.7,1814.6,2.6783]
[1746079260934,1.10199,1814.7,1814.6,1.5763]
[1746079261521,2.75439,1814.7,1814.6,1.5763]
[1746079264832,2.75439,1814.7,1814.6,2.6783]
[1746079265131,2.75439,1814.7,1814.6,1.5763]
[1746079265529,1.102,1814.6,1814.5,10.13542]
[1746079265732,2.75404,1815.3,1814.6,2.75501]
[1746079266032,4.46723,1815.1,1815.0,3.2078]
[1746079266335,4.4672,1815.1,1815.0,5.6751]
[1746079266735,4.4672,1815.1,1815.0,6.77686]
[1746079267627,1.10168,1815.2,1815.0,6.77686]
[1746079267828,1.10168,1815.2,1815.1,1.652]
[1746079268327,2.83398,1815.2,1815.1,1.652]
[1746079269629,1.10168,1815.2,1815.1,1.652]
[1746079269830,2.69578,1815.2,1815.1,1.652]
[1746079270830,1.1017,1815.1,1815.0,3.2078]
[1746079271035,2.6958,1815.1,1815.0,3.2078]
[1746079272139,2.6958,1815.1,1815.0,6.9958]
[1746079273233,2.6958,1815.1,1815.0,4.30956]
[1746079273436,2.6958,1815.1,1815.0,3.2078]